Cogmind - Beta 16 @@@ ROGUE MODE // 2025.12.14 @ 11:07:57 Player: PE-P51 Result: Destroyed by KC-KBY(R) with Subdweller Laser Performance ------------- Evolutions (0) 0 Regions Visited (2) 400 Robots Destroyed (26) 130 Value Destroyed (762) 762 Prototype IDs (14) 280 Alien Tech Used (0) 0 Bonus (0) 0 TOTAL SCORE: 1572 Bonus ------- None Cogmind --------- Core Integrity 0/250 Matter 197/300 Energy 245/250 System Corruption 0% Temperature Danger (488) Movement Walking (120) Location -10/Subcaves Parts ------- > --- POWER (1) -------- Ion Engine > --- PROPULSION (2) --- Aluminum Leg Aluminum Leg > --- UTILITY (2) ------ Small Storage Unit Seismic Detector > --- WEAPON (2) ------- Heavy Battle Rifle Battle Cannon > --- INVENTORY (8) ---- Aluminum Leg Aluminum Leg Disposable Heat Sink Makeshift Hacking Suite Subdweller Laser Powered Cannon Autogun Peak State ------------ > --- POWER ------------ Ion Engine > --- PROPULSION ------- Aluminum Leg Aluminum Leg > --- UTILITY ---------- Small Storage Unit Seismic Detector > --- WEAPON ----------- Heavy Battle Rifle Battle Cannon > --- INVENTORY -------- Aluminum Leg Aluminum Leg Disposable Heat Sink Makeshift Hacking Suite Subdweller Laser Powered Cannon Autogun [Rating: 13] Favorites ----------- Power Ion Engine Engine Ion Engine Propulsion Aluminum Leg Leg Aluminum Leg Utility Small Storage Unit Device Subdweller Optics Storage Small Storage Unit Processor Transport Network Coupler Protection Light Armor Plating Weapon Autogun Energy Gun EM Pulse Gun Ballistic Gun Autogun Ballistic Cannon Battle Cannon Build | -11 -10 -10 ------- Run | Yrd Mat Sub Slots Evolved . | . . . Power . | . . . Propulsion . | . . . Utility . | . . . Weapon . | . . . Parts Attached 29 | 7 13 9 Power 3 | 1 2 . Engine 3 | 1 2 . Core . | . . . Reactor . | . . . Propulsion 8 | 2 6 . Treads . | . . . Leg 8 | 2 6 . Wheel . | . . . Hover . | . . . Flight . | . . . Utility 7 | 2 1 4 Device 4 | 1 . 3 Storage 1 | 1 . . Processor 1 | . 1 . Hackware . | . . . Protection 1 | . . 1 Artifact . | . . . Weapon 11 | 2 4 5 Energy Gun 2 | 2 . . Energy Cannon . | . . . Ballistic Gun 8 | . 4 4 Ballistic Cannon 1 | . . 1 Launcher . | . . . Special Weapon . | . . . Impact Weapon . | . . . Slashing Weapon . | . . . Piercing Weapon . | . . . Special Melee Weapon . | . . . Unidentified Prototypes . | . . . Parts Lost 4 | . 1 3 Power 1 | . . 1 Propulsion . | . . . Utility 2 | . 1 1 Weapon 1 | . . 1 Highest Loss Streak 1 | . 1 1 To Critical Strikes . | . . . Average Backups 6 | 1 5 6 Power . | . 1 . Propulsion 2 | . 2 2 Utility 1 | . 1 1 Weapon 2 | . 1 2 Tool/Special . | . . . Unused Backups 12 | . 6 6 Power 1 | . 1 . Propulsion 3 | . 3 . Utility 4 | . 1 3 Weapon 4 | . 1 3 Tool/Special . | . . . Average Slot Usage (%) 99 | . 98 99 Engine 13 | . 14 13 Leg 28 | . 28 28 Device 6 | . 9 5 Storage 14 | . 14 14 Protection 6 | . . 8 Energy Gun 2 | . 14 . Ballistic Gun 16 | . 13 16 Ballistic Cannon 8 | . . 11 Peak Build Rating 13 | 9 12 13 Average Rating 10 | 5 9 11 On Entrance 6 | . 9 10 Avg Prop Armor Cover (%) . | . . . Naked Turns . | . . . Heaviest Build 21 | 13 16 21 Greatest Support 20 | 20 20 20 Greatest Overweight (x) 3 | 3 . 1 Average Overweight (x) . | . . . Largest Inventory Capacity 8 | 8 8 8 Average Capacity 7 | 7 8 8 Most Carried 8 | 2 8 8 Average Carried 7 | 1 6 7 Final Capacity 8 | 8 8 8 Final Carried 8 | 2 8 8 Class Distribution -------------------- 100% | Mutant Dominant Class ---------------- Mutant | -10/Materials Mutant | -10/Subcaves Resources | -11 -10 -10 ----------- Run | Yrd Mat Sub Matter Collected 1099 | 223 254 622 Remotely . | . . . Salvage Created 840 | 43 474 323 Parts 54 | 5 28 21 Haulers Intercepted 2 | . 2 . Recyclers Shooed . | . . . Parts Field Recycled . | . . . Retrieved Matter . | . . . Parts Self-Destructed 11 | . . 11 Prevented . | . . . Parts Restored . | . . . Kills | -11 -10 -10 ------- Run | Yrd Mat Sub Combat Hostiles Destroyed 20 | . 7 13 Guns 13 | . 6 7 Cannons 6 | . . 6 AOE 1 | . 1 . Classes Destroyed 6 | 1 3 2 Tunneler 3 | 2 1 . Hauler 2 | . 2 . Watcher 1 | . 1 . Swarmer 2 | . . 2 Grunt 7 | . 7 . Subdweller 11 | . . 11 Best Kill Streak 4 | 2 4 2 Combat Bots Only 4 | . 4 2 Max Kills in Single Turn 1 | 1 1 1 Gunslinging . | . . . Exploded 1 | . 1 . Melee . | . . . Uniques/NPCs Destroyed . | . . . Combat | -11 -10 -10 -------- Run | Yrd Mat Sub Hostile Shots Fired 79 | . 21 58 Missed 28 | . 10 18 Hits 51 | . 11 40 Projectile 51 | . 11 40 Critical Strikes 3 | . . 3 Damage Taken 970 | . 166 804 Core 267 | . 50 217 Absorbed by Shields . | . . . Core Remaining (%) 100 | 100 . . Volleys Fired 124 | 4 28 92 Largest 2 | 2 2 2 Hottest 80 | 80 80 66 Shots Fired 224 | 8 56 160 Gun 144 | 8 56 80 Cannon 80 | . . 80 Launcher . | . . . Special . | . . . Kinetic 182 | . 22 160 Thermal . | . . . Explosive . | . . . Electromagnetic 42 | 8 34 . Robot Hit Streak 9 | 2 9 6 Robot Miss Streak 5 | 2 2 5 Penetration Max . | . . . Secondary Targets 1 | . 1 . Max Gunslinging Chain 1 | . 1 . Shots Hit Robots 104 | 4 38 62 Core Hits 41 | 2 17 22 Critical Kills . | . . . Critical Parts Destroyed . | . . . Critical Strikes 1 | . . 1 Blast 1 | . . 1 Melee Attacks . | . . . Impact . | . . . Slashing . | . . . Piercing . | . . . Sneak Attacks . | . . . Combat Hostiles . | . . . Follow-up Attacks . | . . . Damage Inflicted 1882 | 57 621 1204 Guns 1282 | 57 539 686 Cannons 515 | . . 515 Explosions 76 | . 76 . Melee . | . . . Ramming 9 | . 6 3 Kinetic 1420 | . 219 1201 Thermal 76 | . 76 . Explosive . | . . . Electromagnetic 377 | 57 320 . Impact . | . . . Slashing . | . . . Piercing . | . . . Highest Corruption . | . . . Average Corruption . | . . . Corruption Purged . | . . . Corruption Blocked . | . . . Overload Shots . | . . . Overflow Damage 1 | . . 1 Projectiles 1 | . . 1 Explosions . | . . . Melee . | . . . Knockbacks 9 | . . 9 Impact . | . . . Kinetic 9 | . . 9 Secondary . | . . . Self-Inflicted Damage 39 | . 39 . Shots 1 | . 1 . Rammed . | . . . Targets Rammed 3 | . 2 1 Kicked 3 | . 2 1 Crushed . | . . . Highest Temperature 500 | 36 126 500 Average Temperature 49 | 16 39 376 Received Heat Transfer 716 | . 69 647 Effects 2 | . . 2 Shutdowns 1 | . . 1 Damage (core) 1 | . . 1 Siege Activations . | . . . Martial Activations . | . . . Shielding Activations . | . . . Robots Disrupted 1 | . 1 . Combat Hostiles 1 | . 1 . Robots Corrupted . | . . . Combat Hostiles . | . . . Parts Fried 1 | . 1 . Impact Corruptions . | . . . Robots Melted . | . . . Combat Hostiles . | . . . Parts Melted . | . . . Heat Transferred 50 | . 50 . Parts Sabotaged . | . . . Parts Stolen . | . . . Parts Stripped . | . . . Power Chain Reactions 2 | . 2 . Alert | -11 -10 -10 ------- Run | Yrd Mat Sub Maximum Alert Level . | . . . Low Security (%) 100 | 100 100 . Level 1 . | . . . Level 2 . | . . . Level 3 . | . . . Level 4 . | . . . Level 5 . | . . . High Security . | . . . Max Security . | . . . Peak Influence 82 | 5 82 . Initial 3 | . 3 . Average 24 | 1 27 . Influence Increases 350 | 10 260 80 Destroy 0b10 Robot/C 180 | . 140 40 Destroy 0b10 Robot/NC 30 | 10 20 . Destroy Leader 46 | . 36 10 Disable Machine 15 | . 15 . Destroy Structure 4 | . 4 . Partial Spotted 15 | . 15 . Lose Combat Pursuer 60 | . 30 30 Influence Decreases 350 | 5 219 126 Entered New Map 25 | . 2 23 Time Decay 295 | 5 187 103 Lost Part 10 | . 10 . Lost Ally 20 | . 20 . Squads Dispatched 3 | . 3 . Investigation 1 | . 1 . Extermination . | . . . Reinforcement 2 | . 2 . Assault . | . . . Garrison . | . . . Intercept . | . . . Searches Triggered . | . . . Construction Impeded . | . . . Haulers Reinforced . | . . . Active Scanning Responses . | . . . Cargo Convoy Interrupts . | . . . Stealth | -11 -10 -10 --------- Run | Yrd Mat Sub Distress Signals 4 | . 4 . Communications Jammed . | . . . Distress Signals . | . . . Times Spotted 32 | . 16 16 Peak Tracking Total 4 | . 4 2 Tactical Retreats 3 | . 2 1 Traps | -11 -10 -10 ------- Run | Yrd Mat Sub Traps Triggered 1 | . 1 . Indirectly . | . . . Trap Hack Attempts . | . . . Triggered . | . . . Disarmed . | . . . Reprogrammed . | . . . Reused . | . . . Traps Extracted . | . . . Installed . | . . . Triggered . | . . . Machines | -11 -10 -10 ---------- Run | Yrd Mat Sub Machines Disabled 3 | . 1 2 Max in Single Turn 2 | . 1 2 Machines Repaired . | . . . Machines Dismantled . | . . . Machines Sabotaged . | . . . Overloaded Fab Kills . | . . . Hacking | -11 -10 -10 --------- Run | Yrd Mat Sub Machines Accessed 3 | . 1 2 Terminals 1 | . 1 . Fabricators . | . . . Repair Stations . | . . . Recycling Units . | . . . Scanalyzers . | . . . Garrison Access . | . . . Total Hacks 8 | . 2 6 Successful 8 | . 2 6 Failed . | . . . Catastrophic . | . . . Database Lockouts . | . . . Manual 1 | . 1 . Terminals 2 | . 2 . Fabricators . | . . . Repair Stations . | . . . Recycling Units . | . . . Scanalyzers . | . . . Garrison Access . | . . . Terminal Hacks 8 | . 2 6 Record 5 | . . 5 Prototype ID Bank 1 | . 1 . Recall Reinforcements 1 | . 1 . Proto ID Catalog 1 | . . 1 Fabricator Hacks . | . . . Repair Station Hacks . | . . . Recycling Unit Hacks . | . . . Scanalyzer . | . . . Garrison Access Hacks . | . . . Unauthorized Hacks . | . . . Terminals . | . . . Fabricators . | . . . Repair Stations . | . . . Recycling Units . | . . . Scanalyzers . | . . . Garrison Access . | . . . Data Cores Recovered . | . . . Used . | . . . Hacking Detections 1 | . 1 . Full Trace Events . | . . . Feedback Events . | . . . Feedback Blocked . | . . . Robot Schematics Acquired . | . . . Robots Built . | . . . Authchips . | . . . Time . | . . . Total Robot Build Rating . | . . . Part Schematics Acquired . | . . . Parts Built . | . . . Authchips . | . . . Time . | . . . Total Part Build Rating . | . . . Part Studies Acquired . | . . . Parts Repaired . | . . . Time . | . . . Parts Recycled . | . . . Recycled Matter . | . . . Retrieved Matter . | . . . Retrieved Components . | . . . Parts Scanalyzed . | . . . Part Schematics Acquired . | . . . Parts Damaged . | . . . Bothacking | -11 -10 -10 ------------ Run | Yrd Mat Sub Used RIF Installer . | . . . Robots Hacked . | . . . Non-combat . | . . . Combat . | . . . Robot Hacks Applied . | . . . Relay Couplers Released . | . . . Fabnet Peak Effective % . | . . . Robots Rewired 1 | . 1 . Allies Hacked . | . . . Hacks Repelled . | . . . Allies | -11 -10 -10 -------- Run | Yrd Mat Sub Total Allies 1 | . 1 . Largest Group 1 | . 1 . Highest-Rated Group 8 | . 8 . Highest-Rated Ally 8 | . 8 . Total Orders . | . . . Ally Attacks 2 | . 2 . Total Damage 12 | . 12 . Kills . | . . . Allies Corrupted . | . . . Allies Melted . | . . . Intel | -11 -10 -10 ------- Run | Yrd Mat Sub Active Infowar (turns) 1597 | 9 525 1063 Optics 666 | . . 666 Terrain 406 | 9 397 . Seismic 392 | . . 392 T.N.C. 133 | . 128 5 Robot Analysis Total . | . . . Derelict Logs Recovered 2 | . . 2 Drone Launches . | . . . Drone Recoveries . | . . . Exploration | -11 -10 -10 ------------- Run | Yrd Mat Sub Turns Passed 3334 | 94 606 2634 Spaces Moved 2066 | 55 310 1701 Core 12 | 12 . . Treads . | . . . Legs 2054 | 43 310 1701 Wheels . | . . . Hover . | . . . Flight . | . . . Fastest Speed 50 | 50 120 120 Average Speed 127 | 128 120 128 Slowest Speed 200 | 200 120 190 Overloaded Moves . | . . . Propulsion Burnouts . | . . . Robots Hopped . | . . . Potential Cave-ins . | . . . Cave-ins Triggered . | . . . Exploration Rate (%) 40 | 4 43 75 Regions Visited 2 Branch Regions 1 Pre-discovered Areas 1 | . . 1 Known Exits Taken . | . . . Unknown Exits Taken 2 | 1 1 . Scrap Searched 6 | . . 6 Spaces Dug . | . . . Terrain Destroyed 5 | . 4 1 Melee . | . . . Projectile 1 | . . 1 AOE 4 | . 4 . Terrain Rammed . | . . . Walls Destroyed . | . . . Machines Disabled . | . . . Actions | -11 -10 -10 --------- Run | Yrd Mat Sub Total 2568 | 67 500 2001 Wait 303 | . 122 181 Move 2064 | 54 309 1701 Hop . | . . . Pick Up 18 | 2 10 6 Fast Attach 11 | 7 1 3 Attach 3 | . . 3 Detach 2 | . . 2 Swap 17 | . 12 5 Drop 21 | . 14 7 Fire 124 | 4 28 92 Melee . | . . . Ram . | . . . Kick 3 | . 2 1 Crush . | . . . Escape Stasis . | . . . Rewire 2 | . 2 . Trap . | . . . Miscellaneous . | . . . Route ------- -11/Scrapyard -10/Materials (discovered 2 exits: [*Min] / *Sub) -10/Subcaves (discovered 2 exits: [*Mat x2]) History --------- Turn | Location | Event 17 | -11/Scrapyard | Discovered new exit (range 16) 95 | -11/Scrapyard | Entered Materials 231 | -10/Materials | Discovered new exit (range 10) 310 | -10/Materials | Build established: Mutant 587 | -10/Materials | Discovered new exit (range 9) 701 | -10/Materials | Entered Subcaves 702 | -10/Subcaves | Approached by a straggling Scientist 1132 | -10/Subcaves | Visited 4L-MR0's lab 1183 | -10/Subcaves | Found Powered Cannon 1275 | -10/Subcaves | Core integrity fell below 50% 1514 | -10/Subcaves | Visited Clippyterm 1518 | -10/Subcaves | Learned Research security intel 1518 | -10/Subcaves | Learned Research machine intel 1556 | -10/Subcaves | Discovered new exit (range 13) 1972 | -10/Subcaves | A swath of the cavern ceiling suddenly collapsed 2265 | -10/Subcaves | A swath of the cavern ceiling suddenly collapsed 3092 | -10/Subcaves | Discovered new exit (range 11) 3251 | -10/Subcaves | Shifting Twisted Machinery released Battle Rifle 3251 | -10/Subcaves | Shifting Twisted Machinery released Sub. Power Source 3331 | -10/Subcaves | Core integrity fell below 20% 3335 | -10/Subcaves | Destroyed by KC-KBY(R) with Subdweller Laser Last Messages --------------- 03114_ Found Mak. Flight Unit. 03114_ Found Hvy. Riot Gun. 03114_ Found 41 Matter. 03115_ Acquired 41 matter. 03115_ Searching scrap... 03115_ Found Sub. Monowheel. 03115_ Found Hvy. Battle Rifle. 03115_ Found 54 Matter. 03116_ Acquired 54 matter. 03117_ Dropped Autogun. Battle Rifle falls loose from the Twisted Machinery. Sub. Power Source falls loose from the Twisted Machinery. 03329_ Destroyed Sub. Power Source. 03329_ KC-KBY(R) knocked back. 03331_ Critical hit (Meltdown: +280). 03333_ Critical hit (Meltdown: +250). 03334_ Overheating: Core damaged (-35). 03335_ Power failure, Ion Engine shutdown. 03335_ J2-IJ2(R) Sub. Monowheel blasted off. 03335_ J2-IJ2(R) destroyed. Map ----- +----------------------------------------------------+ | ?????????????????????????????????????????? | | ?????????????????????????????????????????? | | ?????????????????????????????????????????? | | ?????????????????????????????????????????? | | ?????????????????????????????????????????? | | ?????????????????????????????????????????? | | ?????????????????????????????????????????? | | ?????????????????????????????#???????????? | | ??????????????????????????##""#??????????? | | ?????????????????????????#? #?????????? | | ??????????????????????????"? "#?###??? | | ?????????????????????????? "" ""## #?? | | ???????????????????????? ? "" "" ?? | | ???????????????????? ??? "" "" ?? | | ???????????????????? ????? "* "" ## | | ???????????????????? ?????# "" ""??# | | ???????????????????? ?###???# "" ##?# | | ??????????????????# # ##???# ""[##### | | ??????????????????# #???## " # | | ??????????????????# #???## | | ???????????????????# ????# # | | ????????????????????# ??#### ###### | | ????????????????????# #?## ##??### | | ??????????????#####?# ### ##???# | | ??????????????# ### #???? | | ??????????????# @## ###### #???? | | ??????????????# ]=% ##????####???? | | ??????????????## R ######???????? | | ???????????????# ### #???????? | | ???????????????# #?# ##???????? | | ???????????????# #?# #????????? | | ???????????????# ##?# """"" #????????? | | ???????????????##???# " " #????????? | | ????????????????????## " ###????????? | | ?????????????????????## " #??????????? | | ??????????????????????# """""#?????????? | | ??????????????????????# "" #????????? | | ?????????????????????? ## "" ???????? | | ????????????????????? ##"" ????????? | | ????????????????????? #?#" ????????? | | ???????????????????? ??## ??????????? | | ????????????????????### ???????????????? | | ??????????????????????# "???????????????? | | ??????????????????????# ???????????????? | | ??????????????????????# ???????????????? | | ??????????????????????#"""???????????????? | | ?????????????????????????????????????????? | | ?????????????????????????????????????????? | | ?????????????????????????????????????????? | | ?????????????????????????????????????????? | +----------------------------------------------------+ Best States ------------- Heat Dissipation 25 Energy Generation 10 Energy Capacity 250 Matter Stores 300 Matter Capacity 300 Sight Range 21 Terrain Scan Range 16 Terrain Scan Density 10 Armor Coverage 150 Evasion (%) 55 Item Schematics ----------------- None Robot Schematics ------------------ None Fabricated ------------ Nothing Repaired ---------- Nothing Studied --------- None Alien Tech Used ----------------- None Achievements -------------- None Challenges ------------ None Game ------ Seed MassStealthSabre Manual? 0 Play Time 00:26:09 Cumulative 175.5 hours Start 2025.12.14 @ 10:30:21 End 2025.12.14 @ 11:07:57 Sessions 1 Manual Loads 0 Difficulty Rogue Special Mode None Game No. 261 Rogue 261 Adventurer 0 Explorer 0 Win Type - Total 1 Types 1/0/0/0/0/0/0/0/0/0 Lore% 61 Gallery% 58 Achievement% 50 Wizard Run 0 Options --------- Layout 0 ASCII 0 Keyboard 0 Movement Numpad Keybinds 0 Fullscreen 1 Font 24/Smallcaps Map View 76x50 Zoom Use 0% Tactical HUD 1 Map Filters NONE Filters NONE Steam 1 RUN: 5a98f7e9-c9a5-40ca-846d-b5e76b56d1a3